Cogmind - Beta 10.2 @@@ ROGUE MODE // 2020.12.19 @ 12:08:49 Player: deMangler Result: Destroyed by S-10 Pest with Light Assault Rifle Performance ------------- Evolutions (1) 500 Regions Visited (2) 400 Robots Destroyed (8) 40 Value Destroyed (296) 296 Prototype IDs (0) 0 Alien Tech Used (0) 0 Bonus (0) 0 TOTAL SCORE: 1236 Bonus ------- None Cogmind --------- Core Integrity 0/400 Matter 290/300 Energy 100/100 System Corruption 0% Temperature Cool (0) Movement Core (300) Ox5 Location -9/Materials Parts ------- > --- POWER (1) -------- (None) > --- PROPULSION (2) --- (None) > --- UTILITY (3) ------ Large Storage Unit Utility Shielding > --- WEAPON (3) ------- (None) > --- INVENTORY (10) --- Ion Engine Heat Sink Medium Matter Pod (100) Sensor Array Utility Shielding Peak State ------------ > --- POWER ------------ Ion Engine > --- PROPULSION ------- Wheel Compact Wheel > --- UTILITY ---------- Heat Sink Large Storage Unit Utility Shielding > --- WEAPON ----------- Medium Laser Light Assault Rifle Heavy Assault Rifle > --- INVENTORY -------- Ion Engine Aluminum Leg Aluminum Leg Wheel Heat Sink Medium Matter Pod Sensor Array Utility Shielding Small Laser Small Laser [Rating: 11] Favorites ----------- Power Light Ion Engine Engine Light Ion Engine Propulsion Aluminum Leg Leg Aluminum Leg Wheel Compact Wheel Utility Large Storage Unit Device Sensor Array Storage Large Storage Unit Protection Utility Shielding Weapon Light Assault Rifle Energy Gun Medium Laser Ballistic Gun Light Assault Rifle Build | -11 -10 -9 ------- Run | Scr Mat Mat Slots Evolved 2 | . . 2 Power . | . . . Propulsion . | . . . Utility 1 | . . 1 Weapon 1 | . . 1 Parts Attached 27 | 5 5 17 Power 4 | 1 . 3 Engine 4 | 1 . 3 Core . | . . . Reactor . | . . . Propulsion 10 | 2 2 6 Treads . | . . . Leg 4 | 2 . 2 Wheel 6 | . 2 4 Hover . | . . . Flight . | . . . Utility 5 | . 3 2 Device 3 | . 2 1 Storage 1 | . 1 . Processor . | . . . Hackware . | . . . Protection 1 | . . 1 Artifact . | . . . Weapon 8 | 2 . 6 Energy Gun 5 | 1 . 4 Energy Cannon . | . . . Ballistic Gun 3 | 1 . 2 Ballistic Cannon . | . . . Launcher . | . . . Special Weapon . | . . . Impact Weapon . | . . . Slashing Weapon . | . . . Piercing Weapon . | . . . Special Melee Weapon . | . . . Unidentified Prototypes . | . . . Parts Lost 14 | . . 14 Power 2 | . . 2 Propulsion 6 | . . 6 Utility 1 | . . 1 Weapon 5 | . . 5 Highest Loss Streak 10 | . . 10 Average Slot Usage (%) 79 | . 89 73 Engine 9 | . 14 6 Leg 6 | . 12 3 Wheel 14 | . 14 14 Device 9 | . 11 8 Storage 9 | . 7 11 Protection 5 | . . 8 Energy Gun 11 | . 14 10 Ballistic Gun 11 | . 14 9 Naked Turns . | . . . Heaviest Build 29 | 6 23 29 Greatest Support 32 | 20 32 32 Greatest Overweight (x) 5 | . . 5 Average Overweight (x) . | . . . Largest Inventory Capacity 10 | 4 10 10 Average Capacity 8 | 4 7 10 Most Carried 10 | 4 9 10 Average Carried 6 | . 5 7 Final Capacity 10 | 4 10 10 Final Carried 9 | 4 9 5 Class Distribution -------------------- 69% | Mutant 21% | Tank 8% | Skirmisher Dominant Class ---------------- Mutant | -10/Materials Mutant | -9/Materials Resources | -11 -10 -9 ----------- Run | Scr Mat Mat Matter Collected 577 | 252 . 325 Remotely . | . . . Salvage Created 321 | 40 . 281 Parts 25 | 3 . 22 Haulers Intercepted . | . . . Recyclers Shooed . | . . . Parts Field Recycled . | . . . Retrieved Matter . | . . . Parts Self-Destructed . | . . . Prevented . | . . . Kills | -11 -10 -9 ------- Run | Scr Mat Mat Combat Hostiles Destroyed 8 | 1 . 7 Guns 8 | 1 . 7 Classes Destroyed 2 | 1 . 1 Grunt 7 | 1 . 6 Sentry 1 | . . 1 Best Kill Streak 4 | 1 . 4 Combat Bots Only 4 | 1 . 4 Max Kills in Single Turn 2 | 1 . 2 Gunslinging 1 | . . 1 Exploded . | . . . Melee . | . . . Uniques/NPCs Destroyed . | . . . Combat | -11 -10 -9 -------- Run | Scr Mat Mat Damage Taken 1202 | 12 . 1190 Core 408 | . . 408 Absorbed by Shields . | . . . Core Remaining (%) 100 | 100 100 . Volleys Fired 37 | 2 . 35 Largest 3 | 2 . 3 Hottest 110 | 70 . 110 Shots Fired 86 | 4 . 82 Gun 86 | 4 . 82 Cannon . | . . . Launcher . | . . . Special . | . . . Kinetic 42 | 2 . 40 Thermal 44 | 2 . 42 Explosive . | . . . Electromagnetic . | . . . Robot Hit Streak 12 | 3 . 12 Robot Miss Streak 4 | . . 4 Penetration Max . | . . . Secondary Targets 3 | . . 3 Max Gunslinging Chain 1 | . . 1 Shots Hit Robots 53 | 3 . 50 Core Hits 15 | 2 . 13 Critical Hits . | . . . Critical Kills . | . . . Critical Parts Destroyed . | . . . Melee Attacks . | . . . Impact . | . . . Slashing . | . . . Piercing . | . . . Sneak Attacks . | . . . Combat Hostiles . | . . . Follow-up Attacks . | . . . Damage Inflicted 344 | 35 . 309 Guns 344 | 35 . 309 Cannons . | . . . Explosions . | . . . Melee . | . . . Ramming . | . . . Kinetic 138 | 10 . 128 Thermal 206 | 25 . 181 Explosive . | . . . Electromagnetic . | . . . Impact . | . . . Slashing . | . . . Piercing . | . . . Highest Corruption . | . . . Average Corruption . | . . . Corruption Purged . | . . . Overload Shots . | . . . Overflow Damage . | . . . Projectiles . | . . . Explosions . | . . . Melee . | . . . Knockbacks . | . . . Impact . | . . . Kinetic . | . . . Secondary . | . . . Self-Inflicted Damage . | . . . Shots . | . . . Rammed . | . . . Targets Rammed . | . . . Kicked . | . . . Crushed . | . . . Highest Temperature 87 | 46 . 87 Average Temperature 33 | 25 . 33 Received Heat Transfer 528 | 6 . 522 Siege Activations . | . . . Robots Corrupted . | . . . Combat Hostiles . | . . . Parts Fried . | . . . Impact Corruptions . | . . . Robots Melted . | . . . Combat Hostiles . | . . . Parts Melted 2 | 2 . . Heat Transferred 581 | 74 . 507 Parts Sabotaged . | . . . Parts Stolen . | . . . Parts Stripped . | . . . Power Chain Reactions . | . . . Missiles Intercepted . | . . . Alert | -11 -10 -9 ------- Run | Scr Mat Mat Peak Influence 189 | 20 47 189 Initial 19 | . 13 19 Average 60 | 4 17 102 Maximum Alert Level . | . . . Low Security (%) 100 | 100 100 100 Level 1 . | . . . Level 2 . | . . . Level 3 . | . . . Level 4 . | . . . Level 5 . | . . . High Security . | . . . Max Security . | . . . Squads Dispatched 2 | . . 2 Investigation 1 | . . 1 Extermination . | . . . Reinforcement 1 | . . 1 Assault . | . . . Garrison . | . . . Intercept . | . . . Construction Impeded . | . . . Haulers Reinforced . | . . . Stealth | -11 -10 -9 --------- Run | Scr Mat Mat Distress Signals 1 | . 1 . Communications Jammed . | . . . Distress Signals . | . . . Times Spotted 20 | 1 2 17 Peak Tracking Total 7 | 1 2 7 Tactical Retreats 1 | . 1 . Traps | -11 -10 -9 ------- Run | Scr Mat Mat Traps Triggered 3 | . . 3 Indirectly . | . . . Trap Hack Attempts . | . . . Triggered . | . . . Disarmed . | . . . Reprogrammed . | . . . Reused . | . . . Traps Extracted . | . . . Installed . | . . . Triggered . | . . . Machines | -11 -10 -9 ---------- Run | Scr Mat Mat Machines Disabled . | . . . Max in Single Turn . | . . . Machines Sabotaged . | . . . Garrisons Compromised . | . . . Overloaded Fab Kills . | . . . Fab Network Shutdowns . | . . . Hacking | -11 -10 -9 --------- Run | Scr Mat Mat Machines Accessed 4 | . 3 1 Terminals 4 | . 3 1 Fabricators . | . . . Repair Stations . | . . . Recycling Units . | . . . Scanalyzers . | . . . Garrison Access . | . . . Total Hacks 7 | . 4 3 Successful 5 | . 3 2 Failed 2 | . 1 1 Catastrophic . | . . . Database Lockouts . | . . . Manual 1 | . . 1 Terminals 7 | . 4 3 Fabricators . | . . . Repair Stations . | . . . Recycling Units . | . . . Scanalyzers . | . . . Garrison Access . | . . . Terminal Hacks 5 | . 3 2 Record 4 | . 2 2 Emergency Access Points 1 | . 1 . Fabricator Hacks . | . . . Repair Station Hacks . | . . . Recycling Unit Hacks . | . . . Scanalyzer . | . . . Garrison Access Hacks . | . . . Unauthorized Hacks . | . . . Terminals . | . . . Fabricators . | . . . Repair Stations . | . . . Recycling Units . | . . . Scanalyzers . | . . . Garrison Access . | . . . Data Cores Recovered . | . . . Used . | . . . Hacking Detections 2 | . 1 1 Full Trace Events 1 | . . 1 Feedback Events . | . . . Feedback Blocked . | . . . Robot Schematics Acquired . | . . . Robots Built . | . . . Matter . | . . . Time . | . . . Total Robot Build Rating . | . . . Part Schematics Acquired . | . . . Parts Built . | . . . Matter . | . . . Time . | . . . Total Part Build Rating . | . . . Parts Repaired . | . . . Time . | . . . Parts Recycled . | . . . Recycled Matter . | . . . Retrieved Matter . | . . . Retrieved Components . | . . . Parts Scanalyzed . | . . . Part Schematics Acquired . | . . . Parts Damaged . | . . . Bothacking | -11 -10 -9 ------------ Run | Scr Mat Mat Used RIF Installer . | . . . Robots Hacked . | . . . Non-combat . | . . . Combat . | . . . Robot Hacks Applied . | . . . Relay Couplers Released . | . . . Robots Rewired . | . . . Allies Hacked . | . . . Hacks Repelled . | . . . Allies | -11 -10 -9 -------- Run | Scr Mat Mat Total Allies . | . . . Largest Group . | . . . Highest-Rated Group . | . . . Highest-Rated Ally . | . . . Total Orders . | . . . Ally Attacks . | . . . Total Damage . | . . . Kills . | . . . Allies Corrupted . | . . . Allies Melted . | . . . Intel | -11 -10 -9 ------- Run | Scr Mat Mat Robot Analysis Total . | . . . Derelict Logs Recovered . | . . . Drone Launches . | . . . Drone Recoveries . | . . . Exploration | -11 -10 -9 ------------- Run | Scr Mat Mat Turns Passed 770 | 105 253 412 Spaces Moved 560 | 86 221 253 Core 34 | 21 . 13 Treads . | . . . Legs 215 | 65 91 59 Wheels 311 | . 130 181 Hover . | . . . Flight . | . . . Fastest Speed 50 | 50 100 90 Average Speed 109 | 102 108 113 Slowest Speed 300 | 120 120 300 Overloaded Moves . | . . . Propulsion Burnouts . | . . . Robots Hopped . | . . . Cave-ins Triggered . | . . . Exploration Rate (%) 24 | 6 45 21 Regions Visited 2 Branch Regions . Pre-discovered Areas . | . . . Known Exits Taken . | . . . Unknown Exits Taken 2 | 1 1 . Scrap Searched . | . . . Spaces Dug . | . . . Terrain Destroyed . | . . . Melee . | . . . Projectile . | . . . AOE . | . . . Terrain Rammed . | . . . Walls Destroyed . | . . . Machines Disabled . | . . . Actions | -11 -10 -9 --------- Run | Scr Mat Mat Total 641 | 96 233 312 Wait . | . . . Move 558 | 85 220 253 Hop . | . . . Pick Up 15 | 4 5 6 Fast Attach 14 | 5 5 4 Attach 11 | . . 11 Detach 1 | . . 1 Swap 2 | . . 2 Drop 3 | . 3 . Fire 37 | 2 . 35 Melee . | . . . Ram . | . . . Kick . | . . . Crush . | . . . Escape Stasis . | . . . Rewire . | . . . Trap . | . . . Miscellaneous . | . . . Route ------- -11/Scrapyard -10/Materials (discovered 3 exits: *Mat x2 / [*Min]) -9/Materials History --------- Turn | Location | Event 2 | -11/Scrapyard | Met Revision 17 73 | -11/Scrapyard | Discovered new exit (range 8) 106 | -11/Scrapyard | Entered Materials 166 | -10/Materials | Discovered new exit (range 16) 253 | -10/Materials | Discovered new exit (range 5) 279 | -10/Materials | Discovered new exit (range 16) 304 | -10/Materials | Build established: Mutant 359 | -10/Materials | Entered another Materials area 359 | -9/Materials | Evolved 2 slots: Utility x1, Weapon x1 665 | -9/Materials | Core integrity fell below 50% 691 | -9/Materials | Lost 10 parts (1p3n1u5w) 739 | -9/Materials | Core integrity fell below 20% 771 | -9/Materials | Destroyed by S-10 Pest with Light Assault Rifle Last Messages --------------- 00606_ Destroyed Particle Gun. 00609_ G-47 Trooper destroyed. 00609_ Switching to secondary target: G-34 Mercenary. 00610_ Lgt. Assault Rifle destroyed. 00612_ Med. Laser destroyed. 00612_ G-34 Mercenary destroyed. 00624_ Sml. Laser destroyed. 00624_ K-01 Serf collects debris. 00626_ Ion Engine destroyed. 00630_ Wheel destroyed. 00645_ Heat Sink destroyed. 00647_ Hvy. Assault Rifle destroyed. 00651_ Sml. Laser destroyed. 00653_ Wheel destroyed. 00653_ Acquired 52 matter. 00660_ Com. Wheel destroyed. 00670_ R-06 Scavenger collects Heat Sink. 00701_ K-01 Serf collects debris. 00767_ Aluminum Leg destroyed. [Achievement: First Step to Greatness] Map ----- +----------------------------------------------------+ | ??????????????????????????????????????????????? | | ??????????????????????????????????????????????? | | ??????????????????????????????????????????????? | | ??????????????????????????????????????????????? | | ??????????????????????????????????????????????? | | ??????????????????????????????????????????????? | | ??????????????????????????????????????????????? | | ??????????????????????????????????????????????? | | ??????????????????????????????????????????????? | | ??????????????????????????????????????????????? | | ??????????????????????????????????????????????? | | ??????????????????????????????????????????????? | | ??????????????????????????????????????????????? | | ??????????? ??????????????????????????????????? | | ??????????? ##+##?????????????????????????????? | | ??????????? ?????????????????????????????? | | ?????????? ?????????????????????????????? | | ?????????? " ?????????????????????????????? | | ??????????? T #????????????????????????????? | | ????????????" #????????????????????????????? | | ????????????? #????????????????????????????? | | ?????????????? #????????????????????????????? | | ??????????????# #????????????????????????????? | | ??????????????# #???######???????????????????? | | ??????????????+ ##### ### #???????????????? | | ??????????????# @ #??????????????? | | ??????????????# ss s s +??????????????? | | ??????????????# ##### ### #??????????????? | | ??????????????# #???##+####??????????????????? | | ??????????????# #??? #??????????????????? | | ??????????????# ## """???????????????????? | | ???????????#+## / """???????????????????? | | ???????????# ## """#??????????????????? | | ???????????# #? """#??????????????????? | | ???????????# ## #??????????????????? | | ???????????# + #??????????????????? | | ??????????## ## = #??????????????????? | | ??????????# ##? #??????????????????? | | ??????????# #???######+#??????????????????? | | ??????????# #?????????????????????????????? | | ??????????+ #?????????????????????????????? | | ??????????# #?????????????????????????????? | | ??????????# #?????????????????????????????? | | ??????##### #?????????????????????????????? | | ??????# #?????????????????????????????? | | ??????# #?????????????????????????????? | | ??????# #+######????????????????????????? | | ??????##### #? ! #????????????????????????? | | ??????????# # #????????????????????????? | | ??????????# # """#????????????????????????? | +----------------------------------------------------+ Best States ------------- Heat Dissipation 38 Energy Generation 10 Energy Capacity 250 Matter Stores 300 Matter Capacity 300 Sight Range 16 Robot Scan Range 10 Terrain Scan Density 10 Utility Shielding 33 Evasion (%) 50 Item Schematics ----------------- None Robot Schematics ------------------ None Fabricated ------------ Nothing Alien Tech Used ----------------- None Achievements -------------- Crack Shot First Step to Greatness One Hack Too Far Uninvited Guest Challenges ------------ None Game ------ Seed RestorationSigixSink Manual? 0 Play Time 01:23:22 Cumulative 2.7 hours Start 2020.12.15 @ 22:58:22 End 2020.12.19 @ 12:08:49 Sessions 42 Manual Loads 0 Difficulty Rogue Special Mode None Game No. 1 Rogue 1 Adventurer 0 Explorer 0 Win Type - Total 0 Types 0/0/0/0/0/0/0/0/0 Lore% 0 Gallery% 1 Achievement% 1 Wizard Run 0 Options --------- ASCII 1 Keyboard 1 Movement Vi Keybinds 0 Fullscreen 0 Font 12/Fuzzy Map View 83x54 Tactical HUD 1 Map Filters NONE Filters NONE Steam 0 RUN: f7f432b7-ff48-4d90-84aa-b0b4c3bbcc99